[Event "Early-Titled-Tuesday-Blitz-December-26-2023"]
[Site "Chess.com"]
[Date "2023.12.26"]
[Round "4"]
[White "NovozhilovSemen"]
[Black "Suleyman_Chess06"]
[Result "0-1"]
[WhiteElo "2759"]
[BlackElo "2613"]
[TimeControl "180+1"]
[EndTime "8:40:12 PST"]
[Termination "Suleyman_Chess06 won by checkmate"]

1. d4 {[%clk 0:03:00.9]} 1... Nf6 {[%clk 0:02:58.6]} 2. Nf3 {[%clk 0:02:57.8]}
2... d5 {[%clk 0:02:58.2]} 3. c4 {[%clk 0:02:57.1]} 3... c6 {[%clk 0:02:58.1]}
4. Qc2 {[%clk 0:02:53]} 4... g6 {[%clk 0:02:56.9]} 5. e3 {[%clk 0:02:52.2]} 5...
Bg7 {[%clk 0:02:57.3]} 6. b3 {[%clk 0:02:52.2]} 6... O-O {[%clk 0:02:57.4]} 7.
Bd3 {[%clk 0:02:52.3]} 7... Nbd7 {[%clk 0:02:55.8]} 8. O-O {[%clk 0:02:52.3]}
8... Re8 {[%clk 0:02:56.5]} 9. Bb2 {[%clk 0:02:52.5]} 9... a5 {[%clk 0:02:55.5]}
10. a3 {[%clk 0:02:52.4]} 10... a4 {[%clk 0:02:55.2]} 11. bxa4 {[%clk
0:02:49.2]} 11... dxc4 {[%clk 0:02:53.6]} 12. Bxc4 {[%clk 0:02:48.4]} 12... Nb6
{[%clk 0:02:54.2]} 13. Bb3 {[%clk 0:02:48]} 13... Bf5 {[%clk 0:02:54.6]} 14. Qd1
{[%clk 0:02:46.2]} 14... Be4 {[%clk 0:02:50.2]} 15. Nc3 {[%clk 0:02:44.8]} 15...
Bf5 {[%clk 0:02:47.9]} 16. Ne5 {[%clk 0:02:33]} 16... Nfd5 {[%clk 0:02:47.9]}
17. e4 {[%clk 0:02:27.4]} 17... Bxe5 {[%clk 0:02:47.9]} 18. exd5 {[%clk
0:02:17.8]} 18... Bg7 {[%clk 0:02:46.8]} 19. dxc6 {[%clk 0:02:13.2]} 19... bxc6
{[%clk 0:02:46.8]} 20. Qf3 {[%clk 0:02:13.3]} 20... Qxd4 {[%clk 0:02:42.2]} 21.
Rfd1 {[%clk 0:02:03.8]} 21... Qf6 {[%clk 0:02:38.4]} 22. Rac1 {[%clk 0:02:00.5]}
22... Qg5 {[%clk 0:02:27.1]} 23. h3 {[%clk 0:01:55.3]} 23... Reb8 {[%clk
0:02:22.4]} 24. Ba1 {[%clk 0:01:41.8]} 24... c5 {[%clk 0:02:16.3]} 25. Ne4
{[%clk 0:00:55]} 25... Qh4 {[%clk 0:01:52]} 26. Ng3 {[%clk 0:00:49.2]} 26... c4
{[%clk 0:01:45.4]} 27. Nxf5 {[%clk 0:00:47.8]} 27... gxf5 {[%clk 0:01:46.1]} 28.
Bc2 {[%clk 0:00:46.1]} 28... Bxa1 {[%clk 0:01:42.1]} 29. Rxa1 {[%clk 0:00:47]}
29... e6 {[%clk 0:01:42.5]} 30. Rab1 {[%clk 0:00:46]} 30... Nd5 {[%clk
0:01:37.8]} 31. Bxf5 {[%clk 0:00:37]} 31... Rxb1 {[%clk 0:01:22.2]} 32. Bxb1
{[%clk 0:00:35.8]} 32... Rxa4 {[%clk 0:01:20.1]} 33. Re1 {[%clk 0:00:30.6]}
33... c3 {[%clk 0:01:17.5]} 34. Qd3 {[%clk 0:00:29.9]} 34... Rd4 {[%clk
0:01:11]} 35. Qf3 {[%clk 0:00:26.5]} 35... Qg5 {[%clk 0:01:05.3]} 36. Kh1 {[%clk
0:00:15.5]} 36... Rd2 {[%clk 0:01:04.1]} 37. Qe4 {[%clk 0:00:14.2]} 37... Qg7
{[%clk 0:01:00.6]} 38. Rf1 {[%clk 0:00:10]} 38... Rd4 {[%clk 0:00:52.6]} 39. Qc2
{[%clk 0:00:10]} 39... Rd2 {[%clk 0:00:52.6]} 40. Qe4 {[%clk 0:00:08.6]} 40...
h5 {[%clk 0:00:51.2]} 41. a4 {[%clk 0:00:08.7]} 41... Rd4 {[%clk 0:00:50.7]} 42.
Qc2 {[%clk 0:00:09.3]} 42... Nf4 {[%clk 0:00:43.3]} 43. Rg1 {[%clk 0:00:07.2]}
43... Rd2 {[%clk 0:00:39.4]} 44. Qe4 {[%clk 0:00:07.4]} 44... Ne2 {[%clk
0:00:34.2]} 45. Re1 {[%clk 0:00:05.2]} 45... Nd4 {[%clk 0:00:34.5]} 46. a5
{[%clk 0:00:05]} 46... c2 {[%clk 0:00:32.9]} 47. Bxc2 {[%clk 0:00:04.4]} 47...
Nxc2 {[%clk 0:00:30.9]} 48. a6 {[%clk 0:00:04.6]} 48... Nxe1 {[%clk 0:00:11.4]}
49. a7 {[%clk 0:00:04.7]} 49... Ra2 {[%clk 0:00:09.1]} 50. a8=Q+ {[%clk
0:00:05.2]} 50... Rxa8 {[%clk 0:00:09.9]} 51. Qxa8+ {[%clk 0:00:05.3]} 51... Qf8
{[%clk 0:00:10.8]} 52. Qe4 {[%clk 0:00:05.9]} 52... Nxg2 {[%clk 0:00:08.9]} 53.
Qxg2+ {[%clk 0:00:05.9]} 53... Qg7 {[%clk 0:00:09.5]} 54. Qf3 {[%clk 0:00:06.7]}
54... Qg6 {[%clk 0:00:10.1]} 55. Qa8+ {[%clk 0:00:06.6]} 55... Kg7 {[%clk
0:00:10.6]} 56. Qa1+ {[%clk 0:00:07.3]} 56... Qf6 {[%clk 0:00:11]} 57. Qg1+
{[%clk 0:00:07]} 57... Qg6 {[%clk 0:00:09.6]} 58. Qe1 {[%clk 0:00:07]} 58... Qf5
{[%clk 0:00:09.6]} 59. Kg2 {[%clk 0:00:07.3]} 59... Kf6 {[%clk 0:00:09.8]} 60.
Qc3+ {[%clk 0:00:07.1]} 60... Qe5 {[%clk 0:00:10]} 61. Qf3+ {[%clk 0:00:07.8]}
61... Ke7 {[%clk 0:00:10.7]} 62. Qa3+ {[%clk 0:00:05.9]} 62... Kf6 {[%clk
0:00:10.8]} 63. Qf3+ {[%clk 0:00:06.2]} 63... Kg6 {[%clk 0:00:11.5]} 64. Qa3
{[%clk 0:00:05.4]} 64... Qd5+ {[%clk 0:00:11.4]} 65. Kh2 {[%clk 0:00:05.7]}
65... Qe5+ {[%clk 0:00:11]} 66. Kg1 {[%clk 0:00:06.1]} 66... Qg5+ {[%clk
0:00:11.2]} 67. Kh2 {[%clk 0:00:06.4]} 67... Qf5 {[%clk 0:00:12.1]} 68. Kg2
{[%clk 0:00:06.8]} 68... h4 {[%clk 0:00:12.1]} 69. Qb4 {[%clk 0:00:04.6]} 69...
Qg5+ {[%clk 0:00:12]} 70. Kh2 {[%clk 0:00:04.8]} 70... Kf6 {[%clk 0:00:12.4]}
71. Qd4+ {[%clk 0:00:04.7]} 71... Qe5+ {[%clk 0:00:12.8]} 72. Qxe5+ {[%clk
0:00:05.4]} 72... Kxe5 {[%clk 0:00:13.7]} 73. Kg2 {[%clk 0:00:06.3]} 73... Kf4
{[%clk 0:00:14.3]} 74. Kg1 {[%clk 0:00:06.8]} 74... Kf3 {[%clk 0:00:15]} 75. Kf1
{[%clk 0:00:07.5]} 75... f5 {[%clk 0:00:15.8]} 76. Kg1 {[%clk 0:00:08]} 76... f4
{[%clk 0:00:16]} 77. Kf1 {[%clk 0:00:08.5]} 77... e5 {[%clk 0:00:16.7]} 78. Kg1
{[%clk 0:00:09.1]} 78... Ke2 {[%clk 0:00:17.4]} 79. Kg2 {[%clk 0:00:09.5]} 79...
f3+ {[%clk 0:00:17.9]} 80. Kg1 {[%clk 0:00:07.1]} 80... e4 {[%clk 0:00:18.4]}
81. Kh2 {[%clk 0:00:07.8]} 81... Kxf2 {[%clk 0:00:18.6]} 82. Kh1 {[%clk
0:00:08.7]} 82... e3 {[%clk 0:00:19.1]} 83. Kh2 {[%clk 0:00:09.6]} 83... e2
{[%clk 0:00:20]} 84. Kh1 {[%clk 0:00:10.5]} 84... e1=Q+ {[%clk 0:00:20.7]} 85.
Kh2 {[%clk 0:00:11.4]} 85... Qg1# {[%clk 0:00:21.5]} 0-1

[Event "Early-Titled-Tuesday-Blitz-December-26-2023"]
[Site "Chess.com"]
[Date "2023.12.26"]
[Round "4"]
[White "jeetjain"]
[Black "wqws"]
[Result "1-0"]
[WhiteElo "2583"]
[BlackElo "2732"]
[TimeControl "180+1"]
[EndTime "8:40:16 PST"]
[Termination "jeetjain won by resignation"]

1. Nf3 {[%clk 0:03:00.9]} 1... Nf6 {[%clk 0:03:00.2]} 2. g3 {[%clk 0:02:59.6]}
2... g6 {[%clk 0:03:00.6]} 3. Bg2 {[%clk 0:03:00.5]} 3... Bg7 {[%clk 0:03:01.1]}
4. O-O {[%clk 0:03:00.6]} 4... O-O {[%clk 0:03:01.6]} 5. d3 {[%clk 0:03:01.3]}
5... d5 {[%clk 0:03:01.4]} 6. Nbd2 {[%clk 0:02:55.1]} 6... c5 {[%clk 0:03:01.5]}
7. e4 {[%clk 0:02:55.6]} 7... Nc6 {[%clk 0:03:01.1]} 8. c3 {[%clk 0:02:53.6]}
8... d4 {[%clk 0:02:56.2]} 9. cxd4 {[%clk 0:02:51.9]} 9... cxd4 {[%clk
0:02:54.3]} 10. h3 {[%clk 0:02:48.6]} 10... e5 {[%clk 0:02:54.2]} 11. Nc4 {[%clk
0:02:47.4]} 11... Qc7 {[%clk 0:02:53.7]} 12. a4 {[%clk 0:02:47.2]} 12... Be6
{[%clk 0:02:51.8]} 13. b3 {[%clk 0:02:45.8]} 13... Rad8 {[%clk 0:02:51.1]} 14.
Ba3 {[%clk 0:02:45.7]} 14... Rfe8 {[%clk 0:02:51.1]} 15. Rc1 {[%clk 0:02:45.9]}
15... h6 {[%clk 0:02:46.3]} 16. Ncxe5 {[%clk 0:02:44.8]} 16... Nd7 {[%clk
0:02:37.1]} 17. Nxd7 {[%clk 0:02:30.4]} 17... Qxd7 {[%clk 0:02:36.5]} 18. Kh2
{[%clk 0:02:24.9]} 18... g5 {[%clk 0:02:18.8]} 19. Nd2 {[%clk 0:02:24.3]} 19...
Ne5 {[%clk 0:02:13.9]} 20. Qe2 {[%clk 0:02:20.7]} 20... f5 {[%clk 0:02:12.2]}
21. f4 {[%clk 0:02:17.4]} 21... Ng6 {[%clk 0:02:10.7]} 22. fxg5 {[%clk
0:02:09.8]} 22... hxg5 {[%clk 0:02:10.3]} 23. exf5 {[%clk 0:02:08.4]} 23... Bxf5
{[%clk 0:02:11.2]} 24. Qf3 {[%clk 0:02:08.8]} 24... Be6 {[%clk 0:02:02.4]} 25.
Qxb7 {[%clk 0:02:05.3]} 25... Bxh3 {[%clk 0:01:20.1]} 26. Rc7 {[%clk 0:01:56.1]}
26... Bxg2 {[%clk 0:01:02.5]} 27. Kxg2 {[%clk 0:01:39.8]} 27... Re2+ {[%clk
0:00:48.5]} 28. Rf2 {[%clk 0:01:26.4]} 28... Nh4+ {[%clk 0:00:18]} 29. gxh4
{[%clk 0:01:12.6]} 29... Qg4+ {[%clk 0:00:17.6]} 30. Kf1 {[%clk 0:01:12.9]}
30... Rxf2+ {[%clk 0:00:16.9]} 31. Kxf2 {[%clk 0:01:12.7]} 31... Qxh4+ {[%clk
0:00:17]} 32. Ke2 {[%clk 0:01:05.8]} 32... Qg4+ {[%clk 0:00:16.2]} 33. Qf3
{[%clk 0:00:58.5]} 33... Re8+ {[%clk 0:00:16]} 34. Kd1 {[%clk 0:00:58.7]} 34...
Qxf3+ {[%clk 0:00:16]} 35. Nxf3 {[%clk 0:00:59.6]} 35... g4 {[%clk 0:00:16.6]}
36. Ne1 {[%clk 0:00:55]} 36... g3 {[%clk 0:00:14.3]} 37. Bd6 {[%clk 0:00:53.9]}
37... Re3 {[%clk 0:00:12.8]} 38. Re7 {[%clk 0:00:49.2]} 38... g2 {[%clk
0:00:08.4]} 39. Nxg2 {[%clk 0:00:46.7]} 39... Rxd3+ {[%clk 0:00:08.9]} 40. Kc2
{[%clk 0:00:47.3]} 40... Rc3+ {[%clk 0:00:09.4]} 41. Kb2 {[%clk 0:00:44.3]}
41... Rf3 {[%clk 0:00:09.6]} 42. Nh4 {[%clk 0:00:25.6]} 42... Rf2+ {[%clk
0:00:09.6]} 43. Kc1 {[%clk 0:00:19.2]} 43... d3 {[%clk 0:00:08]} 44. Bb4 {[%clk
0:00:15.2]} 44... Bh6+ {[%clk 0:00:06.2]} 45. Kd1 {[%clk 0:00:13.9]} 45... Rf4
{[%clk 0:00:03.9]} 46. Be1 {[%clk 0:00:11.3]} 46... d2 {[%clk 0:00:02]} 47. Bxd2
{[%clk 0:00:09.7]} 47... Rd4 {[%clk 0:00:01.3]} 48. Re2 {[%clk 0:00:08.6]} 48...
Rxh4 {[%clk 0:00:01.6]} 49. Bxh6 {[%clk 0:00:08.3]} 49... Rxh6 {[%clk
0:00:02.5]} 50. Re7 {[%clk 0:00:08.9]} 50... Rd6+ {[%clk 0:00:02.9]} 51. Kc2
{[%clk 0:00:09.1]} 51... Rc6+ {[%clk 0:00:03.5]} 52. Kb2 {[%clk 0:00:09.4]}
52... a6 {[%clk 0:00:03.9]} 53. b4 {[%clk 0:00:08.6]} 53... Kf8 {[%clk
0:00:04.6]} 54. Re4 {[%clk 0:00:08.5]} 54... Kf7 {[%clk 0:00:04.1]} 55. Kb3
{[%clk 0:00:09.1]} 55... Kf6 {[%clk 0:00:03.5]} 56. b5 {[%clk 0:00:09.4]} 56...
axb5 {[%clk 0:00:03.8]} 57. axb5 {[%clk 0:00:10.3]} 57... Rc1 {[%clk 0:00:04.3]}
58. Kb4 {[%clk 0:00:10.8]} 58... Kf5 {[%clk 0:00:04]} 59. Re8 {[%clk 0:00:10.2]}
59... Rb1+ {[%clk 0:00:04.2]} 60. Ka5 {[%clk 0:00:10.5]} 60... Ra1+ {[%clk
0:00:04]} 61. Kb6 {[%clk 0:00:11]} 61... Kf6 {[%clk 0:00:04.6]} 62. Kb7 {[%clk
0:00:10.9]} 62... Kf7 {[%clk 0:00:05.1]} 63. Re2 {[%clk 0:00:11.2]} 63... Rc1
{[%clk 0:00:04.8]} 64. b6 {[%clk 0:00:11.7]} 64... Kf8 {[%clk 0:00:05.2]} 65.
Ka7 {[%clk 0:00:12.1]} 65... Ra1+ {[%clk 0:00:04.9]} 66. Kb8 {[%clk 0:00:12.4]}
66... Rb1 {[%clk 0:00:05.2]} 67. b7 {[%clk 0:00:12.8]} 67... Rc1 {[%clk
0:00:04.3]} 68. Ra2 {[%clk 0:00:11.8]} 68... Ke7 {[%clk 0:00:04.5]} 69. Ka7
{[%clk 0:00:12.2]} 1-0

[Event "Early-Titled-Tuesday-Blitz-December-26-2023"]
[Site "Chess.com"]
[Date "2023.12.26"]
[Round "4"]
[White "Kiborg95"]
[Black "Elsa167"]
[Result "0-1"]
[WhiteElo "2811"]
[BlackElo "2997"]
[TimeControl "180+1"]
[EndTime "8:40:38 PST"]
[Termination "Elsa167 won by resignation"]

1. e4 {[%clk 0:03:00.9]} 1... e6 {[%clk 0:02:57.8]} 2. d3 {[%clk 0:02:58.4]}
2... d5 {[%clk 0:02:57.7]} 3. Nd2 {[%clk 0:02:58.3]} 3... c5 {[%clk 0:02:58.2]}
4. g3 {[%clk 0:02:57.3]} 4... Nc6 {[%clk 0:02:58.6]} 5. Bg2 {[%clk 0:02:57.7]}
5... Nf6 {[%clk 0:02:59.1]} 6. Nh3 {[%clk 0:02:57.2]} 6... g6 {[%clk 0:02:41.1]}
7. O-O {[%clk 0:02:55.8]} 7... Bg7 {[%clk 0:02:41.5]} 8. c3 {[%clk 0:02:56.5]}
8... O-O {[%clk 0:02:41.1]} 9. f4 {[%clk 0:02:56.9]} 9... b5 {[%clk 0:02:18.5]}
10. a4 {[%clk 0:02:26.3]} 10... bxa4 {[%clk 0:02:00.7]} 11. Qxa4 {[%clk
0:02:19.7]} 11... Qb6 {[%clk 0:01:57.2]} 12. Nf2 {[%clk 0:02:09]} 12... a5
{[%clk 0:01:55]} 13. g4 {[%clk 0:01:52]} 13... Ba6 {[%clk 0:01:49.8]} 14. g5
{[%clk 0:01:50.6]} 14... Nh5 {[%clk 0:01:30.8]} 15. exd5 {[%clk 0:01:45.9]}
15... exd5 {[%clk 0:01:31.1]} 16. Bxd5 {[%clk 0:01:42.8]} 16... Bb5 {[%clk
0:01:26]} 17. Nc4 {[%clk 0:01:26.6]} 17... Qa6 {[%clk 0:01:25.6]} 18. Qa3 {[%clk
0:01:23.4]} 18... Rfd8 {[%clk 0:01:15.8]} 19. Bf3 {[%clk 0:00:58]} 19... Rac8
{[%clk 0:00:56.4]} 20. Nxa5 {[%clk 0:00:51.2]} 20... Ne7 {[%clk 0:00:29.8]} 21.
Nb7 {[%clk 0:00:44.5]} 21... Qxa3 {[%clk 0:00:21.4]} 22. Rxa3 {[%clk 0:00:45.4]}
22... Rd7 {[%clk 0:00:22.1]} 23. c4 {[%clk 0:00:35.4]} 23... Bc6 {[%clk
0:00:18.8]} 24. Nxc5 {[%clk 0:00:35.9]} 24... Rdd8 {[%clk 0:00:11.1]} 25. Bxc6
{[%clk 0:00:24.7]} 25... Nxc6 {[%clk 0:00:11.4]} 26. Nce4 {[%clk 0:00:22.1]}
26... Nd4 {[%clk 0:00:10.8]} 27. Kg2 {[%clk 0:00:22.4]} 27... Ne2 {[%clk
0:00:06.3]} 28. Kf3 {[%clk 0:00:18.8]} 28... Nxc1 {[%clk 0:00:06.3]} 29. Rxc1
{[%clk 0:00:17.7]} 29... Bxb2 {[%clk 0:00:07]} 30. Raa1 {[%clk 0:00:16.8]} 30...
Bxa1 {[%clk 0:00:06.6]} 31. Rxa1 {[%clk 0:00:16.7]} 31... Ng7 {[%clk 0:00:07]}
32. Nf6+ {[%clk 0:00:10.4]} 32... Kh8 {[%clk 0:00:07.5]} 33. Nd5 {[%clk
0:00:10.9]} 33... Nf5 {[%clk 0:00:06.9]} 34. Ra7 {[%clk 0:00:10.7]} 34... Kg7
{[%clk 0:00:06.1]} 35. Ne4 {[%clk 0:00:11]} 35... Rb8 {[%clk 0:00:03.1]} 36. Ng3
{[%clk 0:00:08.9]} 36... Nd4+ {[%clk 0:00:03.1]} 37. Kg4 {[%clk 0:00:08.6]}
37... Rb2 {[%clk 0:00:02.7]} 38. f5 {[%clk 0:00:08.1]} 38... gxf5+ {[%clk
0:00:02.4]} 39. Nxf5+ {[%clk 0:00:09]} 39... Nxf5 {[%clk 0:00:03.2]} 40. Kxf5
{[%clk 0:00:09.5]} 40... Rxh2 {[%clk 0:00:03.7]} 41. d4 {[%clk 0:00:05.7]} 41...
Rh4 {[%clk 0:00:02.9]} 42. Nf4 {[%clk 0:00:04.7]} 42... Rxf4+ {[%clk 0:00:01.9]}
43. Kxf4 {[%clk 0:00:05]} 43... Rxd4+ {[%clk 0:00:02.6]} 44. Kf5 {[%clk
0:00:05.4]} 44... Rxc4 {[%clk 0:00:03.5]} 45. Ra6 {[%clk 0:00:05.4]} 45... Rc5+
{[%clk 0:00:03.8]} 46. Kf4 {[%clk 0:00:05.7]} 46... Rc8 {[%clk 0:00:04.2]} 47.
Rd6 {[%clk 0:00:05.8]} 47... Re8 {[%clk 0:00:04.8]} 48. Ra6 {[%clk 0:00:06]}
48... Re6 {[%clk 0:00:05.2]} 49. Ra5 {[%clk 0:00:06.5]} 49... Kg6 {[%clk
0:00:05.5]} 50. Rb5 {[%clk 0:00:06.8]} 50... Rc6 {[%clk 0:00:05.2]} 51. Rd5
{[%clk 0:00:06.9]} 51... Rc4+ {[%clk 0:00:05.4]} 52. Kg3 {[%clk 0:00:07.5]}
52... Kh5 {[%clk 0:00:05.9]} 53. Kh3 {[%clk 0:00:07.5]} 53... Rc3+ {[%clk
0:00:05.9]} 54. Kg2 {[%clk 0:00:07.4]} 54... Kg4 {[%clk 0:00:05.7]} 55. Rd7
{[%clk 0:00:07.7]} 55... Rg3+ {[%clk 0:00:05.9]} 56. Kh2 {[%clk 0:00:07.8]}
56... Rf3 {[%clk 0:00:06.6]} 57. Rd5 {[%clk 0:00:07.6]} 57... Rf5 {[%clk
0:00:06.8]} 58. Rd8 {[%clk 0:00:07]} 58... Kxg5 {[%clk 0:00:07]} 59. Rg8+ {[%clk
0:00:07.8]} 59... Kf6 {[%clk 0:00:05]} 60. Ra8 {[%clk 0:00:08.6]} 60... Kg6
{[%clk 0:00:04.8]} 61. Kg3 {[%clk 0:00:09.5]} 61... f6 {[%clk 0:00:04.5]} 62.
Kh4 {[%clk 0:00:10.4]} 62... Rf4+ {[%clk 0:00:04.8]} 63. Kg3 {[%clk 0:00:10.8]}
63... Rc4 {[%clk 0:00:05.4]} 64. Rg8+ {[%clk 0:00:11.4]} 64... Kf5 {[%clk
0:00:05.8]} 65. Ra8 {[%clk 0:00:12.3]} 65... h5 {[%clk 0:00:05.5]} 66. Kh3
{[%clk 0:00:12.7]} 66... Rg4 {[%clk 0:00:03.8]} 67. Rh8 {[%clk 0:00:11.7]} 67...
Rg5 {[%clk 0:00:04]} 68. Kh4 {[%clk 0:00:11.6]} 68... Kf4 {[%clk 0:00:03.8]} 69.
Ra8 {[%clk 0:00:11.1]} 69... Re5 {[%clk 0:00:03]} 70. Ra4+ {[%clk 0:00:11.3]}
70... Kf3 {[%clk 0:00:02.3]} 71. Ra6 {[%clk 0:00:10.5]} 71... Rf5 {[%clk
0:00:02.7]} 72. Ra4 {[%clk 0:00:10.6]} 72... Ke3 {[%clk 0:00:03.1]} 73. Ra3+
{[%clk 0:00:09.9]} 73... Ke4 {[%clk 0:00:03.5]} 74. Ra1 {[%clk 0:00:09.9]} 74...
Ke5 {[%clk 0:00:03.6]} 75. Re1+ {[%clk 0:00:10.1]} 75... Kd6 {[%clk 0:00:04.1]}
76. Re2 {[%clk 0:00:10.4]} 76... Re5 {[%clk 0:00:04.3]} 77. Rf2 {[%clk
0:00:10.8]} 77... Ke6 {[%clk 0:00:04.9]} 78. Rf3 {[%clk 0:00:11.1]} 78... Kf7
{[%clk 0:00:05.3]} 79. Rg3 {[%clk 0:00:11.3]} 79... Rf5 {[%clk 0:00:03.6]} 80.
Rg2 {[%clk 0:00:11.7]} 80... Rf4+ {[%clk 0:00:02.9]} 81. Kxh5 {[%clk 0:00:11.7]}
81... Ke6 {[%clk 0:00:03.5]} 82. Ra2 {[%clk 0:00:05]} 82... Re4 {[%clk
0:00:03.7]} 83. Rf2 {[%clk 0:00:04.4]} 83... Ke5 {[%clk 0:00:03]} 84. Kg6 {[%clk
0:00:04.8]} 84... Rg4+ {[%clk 0:00:03.2]} 85. Kh5 {[%clk 0:00:04.8]} 85... f5
{[%clk 0:00:03.8]} 86. Rf1 {[%clk 0:00:03.5]} 86... Rg8 {[%clk 0:00:03.6]} 87.
Kh4 {[%clk 0:00:03.9]} 87... f4 {[%clk 0:00:04]} 88. Kh3 {[%clk 0:00:04.3]}
88... Ke4 {[%clk 0:00:03.8]} 89. Kh2 {[%clk 0:00:04.7]} 89... Ke3 {[%clk
0:00:04.4]} 90. Rg1 {[%clk 0:00:05.2]} 90... Rxg1 {[%clk 0:00:04.1]} 91. Kxg1
{[%clk 0:00:06.1]} 0-1

[Event "Early-Titled-Tuesday-Blitz-December-26-2023"]
[Site "Chess.com"]
[Date "2023.12.26"]
[Round "4"]
[White "Ali_rastbod"]
[Black "ahkashefi2800"]
[Result "1/2-1/2"]
[WhiteElo "2720"]
[BlackElo "2562"]
[TimeControl "180+1"]
[EndTime "8:41:11 PST"]
[Termination "Game drawn by repetition"]

1. e4 {[%clk 0:03:00.9]} 1... e5 {[%clk 0:02:35.7]} 2. Nf3 {[%clk 0:02:57.6]}
2... Nc6 {[%clk 0:02:35.6]} 3. Bc4 {[%clk 0:02:57.4]} 3... Bc5 {[%clk
0:02:34.6]} 4. c3 {[%clk 0:02:57.5]} 4... Nf6 {[%clk 0:02:34.1]} 5. d3 {[%clk
0:02:57.6]} 5... d6 {[%clk 0:02:33.2]} 6. Nbd2 {[%clk 0:02:54.7]} 6... a6 {[%clk
0:02:32.6]} 7. Bb3 {[%clk 0:02:54.8]} 7... O-O {[%clk 0:02:29.7]} 8. O-O {[%clk
0:02:55.1]} 8... Ba7 {[%clk 0:02:16.9]} 9. h3 {[%clk 0:02:54.5]} 9... Ne7 {[%clk
0:01:57.8]} 10. Re1 {[%clk 0:02:50.1]} 10... Ng6 {[%clk 0:01:57.3]} 11. Nf1
{[%clk 0:02:50.8]} 11... Be6 {[%clk 0:01:53.9]} 12. d4 {[%clk 0:02:45.3]} 12...
h6 {[%clk 0:01:26.9]} 13. Ng3 {[%clk 0:02:43.5]} 13... Re8 {[%clk 0:01:21.5]}
14. Be3 {[%clk 0:02:42]} 14... exd4 {[%clk 0:01:18.7]} 15. Bxd4 {[%clk
0:02:25.5]} 15... Bxb3 {[%clk 0:01:17.1]} 16. Qxb3 {[%clk 0:02:26.3]} 16... Bxd4
{[%clk 0:01:17.1]} 17. cxd4 {[%clk 0:02:27.2]} 17... b6 {[%clk 0:01:08.4]} 18.
d5 {[%clk 0:02:24.7]} 18... Nd7 {[%clk 0:01:06.7]} 19. Nd4 {[%clk 0:02:24.5]}
19... Nc5 {[%clk 0:01:05.8]} 20. Qc2 {[%clk 0:02:24.7]} 20... a5 {[%clk
0:01:06]} 21. Ndf5 {[%clk 0:02:20.5]} 21... Qg5 {[%clk 0:00:52.2]} 22. Qc3
{[%clk 0:02:02]} 22... Re5 {[%clk 0:00:48.2]} 23. Nd4 {[%clk 0:01:49.1]} 23...
Rae8 {[%clk 0:00:45]} 24. Nf3 {[%clk 0:01:49]} 24... Qf6 {[%clk 0:00:21.4]} 25.
Nxe5 {[%clk 0:01:48.9]} 25... Nxe5 {[%clk 0:00:20.5]} 26. Nf5 {[%clk 0:01:40]}
26... h5 {[%clk 0:00:08.7]} 27. Nd4 {[%clk 0:01:17.3]} 27... Ned3 {[%clk
0:00:06.9]} 28. Re2 {[%clk 0:01:05.5]} 28... Rxe4 {[%clk 0:00:06.4]} 29. Rxe4
{[%clk 0:00:43.3]} 29... Qxf2+ {[%clk 0:00:06.6]} 30. Kh1 {[%clk 0:00:37.9]}
30... Nxe4 {[%clk 0:00:06.3]} 31. Qxd3 {[%clk 0:00:37.9]} 31... Qxb2 {[%clk
0:00:02.2]} 32. Rf1 {[%clk 0:00:26.5]} 32... Nf2+ {[%clk 0:00:02.2]} 33. Rxf2
{[%clk 0:00:27]} 33... Qxf2 {[%clk 0:00:02.3]} 34. a4 {[%clk 0:00:08.4]} 34...
Qe1+ {[%clk 0:00:02.4]} 35. Kh2 {[%clk 0:00:08.3]} 35... Qe5+ {[%clk 0:00:02.5]}
36. Kg1 {[%clk 0:00:05.8]} 36... Qe1+ {[%clk 0:00:02.8]} 37. Qf1 {[%clk
0:00:06.5]} 37... Qe3+ {[%clk 0:00:02.7]} 38. Qf2 {[%clk 0:00:07.2]} 38... Qc1+
{[%clk 0:00:02.9]} 39. Kh2 {[%clk 0:00:07.3]} 39... g6 {[%clk 0:00:03.1]} 40.
Nc6 {[%clk 0:00:06.1]} 40... Qd1 {[%clk 0:00:02.1]} 41. h4 {[%clk 0:00:03.3]}
41... Qxa4 {[%clk 0:00:02.1]} 42. Ne7+ {[%clk 0:00:03.3]} 42... Kg7 {[%clk
0:00:01.9]} 43. Qb2+ {[%clk 0:00:03.2]} 43... Kf8 {[%clk 0:00:02]} 44. Qf6
{[%clk 0:00:02.9]} 44... Qg4 {[%clk 0:00:01.8]} 45. Nc6 {[%clk 0:00:01.9]} 45...
Kg8 {[%clk 0:00:02]} 46. Qd8+ {[%clk 0:00:02.1]} 46... Kg7 {[%clk 0:00:02.3]}
47. Qg5 {[%clk 0:00:03]} 47... Qxg5 {[%clk 0:00:02.4]} 48. hxg5 {[%clk
0:00:03.9]} 48... a4 {[%clk 0:00:02.9]} 49. Kg3 {[%clk 0:00:04.6]} 49... a3
{[%clk 0:00:02.9]} 50. Nb4 {[%clk 0:00:05.2]} 50... f6 {[%clk 0:00:03.3]} 51.
Kf4 {[%clk 0:00:05.9]} 51... Kf7 {[%clk 0:00:03.6]} 52. Na2 {[%clk 0:00:05.7]}
52... Kg7 {[%clk 0:00:03.4]} 53. Nc3 {[%clk 0:00:06.4]} 53... Kf7 {[%clk
0:00:03.1]} 54. g3 {[%clk 0:00:06.8]} 54... b5 {[%clk 0:00:02.8]} 55. Na2 {[%clk
0:00:07]} 55... Kg7 {[%clk 0:00:02.5]} 56. Nb4 {[%clk 0:00:07.6]} 56... Kf7
{[%clk 0:00:02.6]} 57. Na2 {[%clk 0:00:07.4]} 57... fxg5+ {[%clk 0:00:02.9]} 58.
Kxg5 {[%clk 0:00:07.6]} 58... Kg7 {[%clk 0:00:03.5]} 59. Nb4 {[%clk 0:00:08.4]}
59... Kf7 {[%clk 0:00:02.6]} 60. Nc2 {[%clk 0:00:09.2]} 60... a2 {[%clk
0:00:02.1]} 61. Na1 {[%clk 0:00:10]} 61... b4 {[%clk 0:00:02.5]} 62. Nb3 {[%clk
0:00:10.7]} 62... Kg7 {[%clk 0:00:03]} 63. Na1 {[%clk 0:00:11.5]} 63... Kf7
{[%clk 0:00:03.1]} 64. Nb3 {[%clk 0:00:12.2]} 64... Ke7 {[%clk 0:00:03.1]} 65.
Kxg6 {[%clk 0:00:12.3]} 65... Kd7 {[%clk 0:00:03.1]} 66. Kxh5 {[%clk 0:00:12.5]}
66... c5 {[%clk 0:00:03.6]} 67. dxc6+ {[%clk 0:00:12.6]} 67... Kxc6 {[%clk
0:00:04]} 68. g4 {[%clk 0:00:13.3]} 68... Kb5 {[%clk 0:00:03.9]} 69. g5 {[%clk
0:00:11.3]} 69... Kc4 {[%clk 0:00:04.3]} 70. Na1 {[%clk 0:00:12]} 70... b3
{[%clk 0:00:04.5]} 71. g6 {[%clk 0:00:10.3]} 71... b2 {[%clk 0:00:04.9]} 72. g7
{[%clk 0:00:08.7]} 72... b1=Q {[%clk 0:00:04.2]} 73. g8=Q+ {[%clk 0:00:09.6]}
73... Kc3 {[%clk 0:00:04.6]} 74. Qg7+ {[%clk 0:00:08.8]} 74... Kb4 {[%clk
0:00:04.8]} 75. Qd4+ {[%clk 0:00:08.5]} 75... Ka3 {[%clk 0:00:04.4]} 76. Qc3+
{[%clk 0:00:06.6]} 76... Ka4 {[%clk 0:00:04.2]} 77. Qc4+ {[%clk 0:00:05.9]}
77... Ka5 {[%clk 0:00:04.5]} 78. Qc3+ {[%clk 0:00:03.8]} 78... Qb4 {[%clk
0:00:04.1]} 79. Qc1 {[%clk 0:00:02.4]} 79... Qc5+ {[%clk 0:00:03.8]} 80. Qxc5+
{[%clk 0:00:01.9]} 80... dxc5 {[%clk 0:00:04.4]} 81. Kg4 {[%clk 0:00:02.8]}
81... Kb4 {[%clk 0:00:04.9]} 82. Kf3 {[%clk 0:00:03.6]} 82... Kc3 {[%clk
0:00:05.4]} 83. Ke2 {[%clk 0:00:03.6]} 83... Kb2 {[%clk 0:00:05.8]} 84. Kd1
{[%clk 0:00:02.5]} 84... c4 {[%clk 0:00:05.1]} 85. Kd2 {[%clk 0:00:02.7]} 85...
c3+ {[%clk 0:00:04.8]} 86. Kd1 {[%clk 0:00:02.3]} 86... Kb1 {[%clk 0:00:03.5]}
87. Nc2 {[%clk 0:00:02.6]} 87... Kb2 {[%clk 0:00:02.5]} 88. Na1 {[%clk
0:00:03.3]} 88... Kb1 {[%clk 0:00:02.2]} 89. Nc2 {[%clk 0:00:03.3]} 89... Kb2
{[%clk 0:00:02.1]} 90. Na1 {[%clk 0:00:04]} 1/2-1/2